bitfinex/quotes_ETHUSD_20230701
["timestamp","ask_amount","ask_price","bid_price","bid_amount"]
[1688199470892,0.129863,1917.6,1917.5,6.30642425]
[1688199473798,0.129863,1917.6,1917.5,11.52154425]
[1688199479094,0.129863,1917.6,1917.5,14.12910425]
[1688199480767,0.129863,1917.6,1917.5,17.29662609]
[1688199480973,0.129863,1917.6,1917.5,18.65262609]
[1688199481996,0.129863,1917.9,1917.5,18.65262609]
[1688199482179,0.129863,1917.9,1917.7,10.42914]
[1688199484690,0.129863,1917.9,1917.7,13.03642]
[1688199485799,0.129863,1917.9,1917.7,10.42914]
[1688199487872,0.129863,1917.9,1917.7,11.77614]
[1688199488778,0.129863,1917.9,1917.7,14.38342]
[1688199488989,0.129863,1917.9,1917.8,1.438342]
[1688199489191,0.129863,1917.9,1917.8,11.866942]
[1688199491982,0.129863,1917.9,1917.8,5.2143]
[1688199492311,0.129863,1917.9,1917.7,5.21447]
[1688199493791,2.078563,1917.9,1917.7,5.21447]
[1688199495595,0.129863,1917.9,1917.8,7.54352184]
[1688199495792,0.129863,1917.9,1917.8,21.05927184]
[1688199496014,0.129863,1917.9,1917.8,23.94737402]
[1688199496177,0.129863,1917.9,1917.8,23.44737402]
[1688199496382,0.129863,1917.9,1917.8,23.94737402]
[1688199497104,4.7934,1918.4,1917.8,23.94737402]
[1688199497105,0.129863,1918.3,1917.8,23.94737402]
[1688199497311,0.129863,1918.3,1917.9,1.836]
[1688199497482,0.129863,1918.3,1918.0,15.72179184]
[1688199497686,0.129863,1918.3,1918.0,17.47757102]
[1688199500389,5.342843,1918.3,1918.0,5.2137]
[1688199501281,5.342843,1918.3,1918.0,10.42746]
[1688199502823,0.129863,1918.3,1918.0,10.42746]
[1688199503028,0.129863,1918.3,1917.9,0.01649237]
[1688199503231,4.6398,1918.2,1917.7,4.347]
[1688199503421,4.6398,1918.2,1917.7,8.21432]
[1688199503422,5.21349,1918.1,1917.7,8.21432]
[1688199503619,16.8468423,1918.2,1917.8,5.21428]
[1688199504517,11.6334023,1918.2,1917.8,5.21428]
[1688199505427,11.6334023,1918.2,1917.8,10.42858]
[1688199505932,6.4200223,1918.2,1917.8,10.42858]
[1688199506127,0.129863,1918.1,1917.8,10.42858]
[1688199515001,0.129863,1918.1,1917.8,13.03573]
[1688199515905,0.129863,1918.1,1917.8,14.64095241]
[1688199517214,0.129863,1918.1,1917.8,13.03573]
[1688199518039,0.129863,1918.1,1917.8,15.72325184]
[1688199518252,0.129863,1918.1,1918.0,13.0344]
[1688199523028,0.129863,1918.1,1918.0,10.42752]
[1688199523208,0.129863,1918.1,1917.9,5.21384]
[1688199523407,0.129863,1918.1,1917.8,10.44484322]
[1688199523608,2.254363,1918.1,1917.8,6.83585154]
[1688199523809,2.254363,1918.1,1917.8,12.05015154]
[1688199525009,2.254363,1918.1,1917.8,6.83585154]
[1688199525943,2.254363,1918.1,1917.8,12.05015154]
[1688199526642,2.254363,1918.1,1917.8,6.83585154]
[1688199527054,2.254363,1918.1,1917.8,6.70585554]
[1688199527784,2.254363,1918.1,1917.8,11.92015554]
[1688199527976,2.254363,1918.1,1917.8,6.70585554]
[1688199528817,2.254363,1918.1,1917.8,5.10064722]
[1688199533022,7.467853,1918.1,1917.7,3.0]
[1688199533251,7.467853,1918.1,1917.7,8.21457]
[1688199534021,12.681343,1918.1,1917.7,5.21457]
[1688199534525,7.467853,1918.1,1917.7,5.21457]
[1688199535656,10.7298043,1918.1,1917.7,5.21457]
[1688199535951,10.7298043,1918.1,1917.7,5.21455]
[1688199543279,1.349,1918.0,1917.6,5.21465]
[1688199543486,9.83229,1917.9,1917.5,38.70352378]
[1688199543672,11.18129,1917.9,1917.5,8.67352378]
[1688199544575,5.9671,1917.9,1917.5,8.67352378]
[1688199545202,0.129863,1917.8,1917.5,8.67352378]
[1688199545486,0.129863,1917.8,1917.5,10.11240416]
[1688199546875,0.129863,1917.8,1917.5,9.69627091]
[1688199547070,5.796963,1917.9,1917.5,6.69627091]
[1688199547276,4.447963,1917.9,1917.5,11.91139091]
[1688199547908,4.447963,1917.9,1917.5,14.51895091]
[1688199548050,4.447963,1917.9,1917.5,11.91139091]
[1688199548252,18.839073,1917.9,1917.5,10.47242053]
[1688199548479,16.227063,1917.9,1917.5,10.47242053]
[1688199548791,16.227063,1917.9,1917.5,5.25730053]
[1688199549156,12.8964093,1917.9,1917.5,10.47242053]
[1688199549584,1.343,1917.6,1917.5,0.04238053]
[1688199550265,3.8399,1917.6,1917.5,0.04238053]
[1688199550586,7.71175,1917.6,1917.5,0.04238053]
[1688199550786,9.22047832,1917.6,1917.5,0.04238053]
[1688199551686,15.79132832,1917.6,1917.5,0.04238053]
[1688199551860,18.39874832,1917.6,1917.5,0.04238053]
[1688199557396,15.90184832,1917.6,1917.5,0.04238053]
[1688199558167,18.58937016,1917.6,1917.5,0.04238053]
[1688199558484,21.58937016,1917.6,1917.5,0.04238053]
[1688199560072,21.58337016,1917.6,1917.5,0.04238053]
[1688199563580,21.9986693,1917.6,1917.5,0.04238053]
[1688199567486,24.6606693,1917.6,1917.5,0.04238053]
[1688199573742,23.3106693,1917.6,1917.5,0.04238053]
[1688199575728,23.3106693,1917.6,1917.5,0.34238053]
[1688199576794,30.1496693,1917.6,1917.5,0.34238053]
[1688199577003,30.6296693,1917.6,1917.5,5.3e-07]
[1688199577323,31.9856693,1917.6,1917.5,5.3e-07]
[1688199582038,31.9856693,1917.6,1917.1,0.09753287]
[1688199582039,0.5,1917.4,1917.1,0.09753287]
[1688199582337,18.52282,1917.2,1917.1,0.09753287]
[1688199582539,24.21034184,1917.2,1917.1,0.09753287]
[1688199583410,24.41920784,1917.2,1917.1,0.09753287]
[1688199584910,25.77520784,1917.2,1917.1,0.09753287]
[1688199585116,28.03106933,1917.2,1917.1,0.09753287]
[1688199586239,19.86054749,1917.2,1917.1,0.09753287]
[1688199586407,13.248686,1917.2,1917.1,0.09753287]
[1688199587064,5.424796,1917.2,1917.1,0.09753287]
[1688199587212,5.21593,1917.2,1917.1,0.09753287]
[1688199587565,13.03982,1917.2,1917.1,0.09753287]
[1688199588061,5.21593,1917.2,1917.1,0.09753287]
[1688199588508,10.43186,1917.2,1917.1,0.09753287]
[1688199589868,13.03982,1917.2,1917.1,0.09753287]
[1688199595456,2.681823,1917.3,1917.1,0.09753287]
[1688199595457,5.21582,1917.3,1917.1,0.09753287]
[1688199595627,5.21593,1917.2,1917.1,0.63893416]
[1688199595830,5.21593,1917.2,1917.1,0.09753287]
[1688199597861,5.21593,1917.2,1917.1,1.45353287]
[1688199599532,5.21582,1917.3,1917.1,1.45353287]
[1688199599739,5.21593,1917.2,1917.1,0.09753287]
[1688199599958,5.21593,1917.2,1917.1,1.45353287]
[1688199600160,5.21593,1917.2,1917.1,6.66974287]
[1688199600330,5.21582,1917.3,1917.1,6.66974287]
[1688199600331,5.21554,1917.4,1917.1,7.86834816]
[1688199600661,5.21554,1917.4,1917.2,1.347]
[1688199601037,10.43114,1917.4,1917.2,1.347]
[1688199603464,5.21539,1917.4,1917.2,1.347]
[1688199603685,10.43095,1917.4,1917.2,1.347]
[1688199606329,10.43095,1917.4,1917.2,2.53467529]
[1688199606571,5.21539,1917.4,1917.3,1.356]
[1688199606840,10.42943,1917.7,1917.3,11.78732]
[1688199607071,10.42943,1917.7,1917.4,1.178732]
[1688199607364,10.42943,1917.7,1917.3,5.21566]
[1688199607545,10.42943,1917.7,1917.6,1.355]
[1688199609368,13.03671,1917.7,1917.6,1.355]
[1688199610645,13.03671,1917.7,1917.5,1.356]
[1688199614177,5.21445,1917.8,1917.6,1.356]
[1688199614355,9.71907,1917.9,1917.6,1.356]
[1688199614356,1.984,1917.9,1917.6,1.356]
[1688199614557,6.04861617,1918.0,1917.6,1.356]
[1688199614558,0.44163617,1918.0,1917.7,1.347]
[1688199614772,10.4286,1917.8,1917.6,2.012099]
[1688199614943,10.4286,1917.8,1917.6,1.355]
[1688199623676,5.2143,1917.8,1917.6,6.5698]
[1688199624375,10.42867,1917.8,1917.6,6.5698]
[1688199624866,5.2143,1917.8,1917.6,6.5698]
[1688199625062,5.2143,1917.8,1917.6,1.355]
[1688199625263,10.42867,1917.8,1917.6,1.355]
[1688199626779,5.2143,1917.8,1917.6,1.355]
[1688199630016,5.2143,1917.8,1917.6,5.21481]
[1688199630208,5.2143,1917.8,1917.6,6.392488]
[1688199630905,7.23334,1917.9,1917.6,11.607338]
[1688199630906,12.44755,1917.9,1917.6,11.607338]
[1688199632003,12.44755,1917.9,1917.6,12.963338]
[1688199632363,5.21363,1918.1,1917.6,15.570758]
[1688199632565,7.29936,1918.2,1917.6,14.214758]
[1688199632779,5.21357,1918.1,1917.7,1.4214758]
[1688199633111,5.21357,1918.1,1917.8,5.21425]
[1688199633275,5.21357,1918.1,1917.8,6.57025]
[1688199634554,5.21357,1918.1,1917.8,1.356]
[1688199635653,5.21357,1918.1,1917.7,13.2052958]
[1688199638641,5.21357,1918.1,1917.7,7.9908858]
[1688199640823,5.21357,1918.1,1917.8,0.79908858]
[1688199641028,10.42714,1918.1,1917.8,6.01325858]
[1688199643645,10.42714,1918.1,1917.8,11.22755858]
[1688199644970,2.5076,1918.3,1917.8,13.83470858]
[1688199645273,9.85627,1918.3,1918.0,1.355]
[1688199645478,9.85627,1918.3,1918.1,5.21349]
[1688199645683,9.85627,1918.3,1918.1,10.42698]
[1688199646499,9.85627,1918.3,1918.1,5.21349]
[1688199647148,15.06924,1918.3,1918.1,5.21349]
[1688199647975,15.06924,1918.3,1918.0,11.78224]
[1688199649245,15.06924,1918.3,1918.0,13.35950009]
[1688199649503,15.06924,1918.3,1918.0,12.00450009]
[1688199650343,15.06924,1918.3,1918.0,10.42724]
[1688199650665,15.06924,1918.3,1918.0,5.21359]
[1688199651906,15.06924,1918.3,1917.9,6.56989]
[1688199652056,15.06924,1918.3,1917.9,5.21389]
[1688199653591,17.67571,1918.3,1917.9,5.21389]
[1688199655811,15.06924,1918.3,1917.9,5.21389]
[1688199658436,16.83845032,1918.3,1917.9,5.21389]
[1688199664448,22.13244216,1918.3,1917.6,0.41508737]
[1688199664654,23.48844216,1918.3,1917.6,0.41508737]
[1688199664859,23.48844216,1918.3,1917.5,5.21498]
[1688199665019,2.34884422,1918.2,1917.5,9.045318]
[1688199665220,5.21369,1918.1,1917.5,14.260438]
[1688199665445,10.42738,1918.1,1917.5,14.260438]
[1688199665639,4.5948,1918.0,1917.5,14.260438]
[1688199666120,9.8086,1918.0,1917.5,14.260438]
[1688199667149,15.0224,1918.0,1917.5,14.260438]
[1688199667327,15.0224,1918.0,1917.5,9.045318]
[1688199667527,17.62928,1918.0,1917.5,9.045318]
[1688199671240,17.62928,1918.0,1917.5,14.260438]
[1688199673062,17.62928,1918.0,1917.5,3.830338]
[1688199673268,19.39385732,1918.0,1917.4,31.79697931]
[1688199673470,19.39385732,1918.0,1917.4,1.76697931]
[1688199673996,19.39385732,1918.0,1917.4,6.98227931]
[1688199674305,19.39385732,1918.0,1917.4,12.19766931]
[1688199674670,16.78697732,1918.0,1917.4,14.80535931]
[1688199674997,19.39385732,1918.0,1917.4,14.02820524]
[1688199675377,16.78697732,1918.0,1917.4,14.02820524]
[1688199676113,19.39385732,1918.0,1917.4,14.02820524]
[1688199687419,19.39385732,1918.0,1917.4,8.81281524]
[1688199687605,19.39385732,1918.0,1917.4,2.24251524]
[1688199688598,6.35937732,1918.0,1917.4,2.24251524]
[1688199688918,17.62924,1918.0,1917.4,0.41197931]
[1688199689119,17.62924,1918.0,1917.3,15.27797]
[1688199692798,17.62924,1918.0,1917.3,15.70466245]
[1688199699017,17.62924,1918.0,1917.3,7.48917245]
[1688199699831,17.62924,1918.0,1917.3,0.42669245]
[1688199699832,18.98524,1918.0,1917.3,0.42669245]
[1688199700136,13.0363,1917.8,1917.2,1.2113]
[1688199700298,13.03738,1917.6,1917.2,4.2113]
[1688199700494,13.03738,1917.6,1917.1,7.16463287]
[1688199700695,13.03738,1917.6,1917.2,5.2159]
[1688199700905,10.4309,1917.4,1917.1,0.09753287]
[1688199701147,5.21545,1917.4,1917.1,0.09753287]
[1688199701297,10.4309,1917.4,1917.1,0.09753287]
[1688199703428,13.03859,1917.4,1917.1,0.09753287]
[1688199720972,4.7881,1917.5,1917.1,1.45353287]
[1688199721145,5.21474,1917.7,1917.1,13.13805287]
[1688199721481,5.21424,1917.9,1917.4,5.21528]
[1688199721772,5.21409,1917.9,1917.4,10.43067]
[1688199722459,10.42818,1917.9,1917.4,10.43067]
[1688199722662,10.42818,1917.9,1917.5,1.043067]
[1688199722852,10.42818,1917.9,1917.5,7.609027]
[1688199723944,1.043693,1918.4,1917.6,1.356]
[1688199724141,1.043693,1918.4,1917.8,6.56225]
[1688199724142,5.2135,1918.1,1917.8,6.56225]
[1688199724367,5.21341,1918.2,1917.8,12.954221]
[1688199724604,10.42682,1918.2,1917.8,12.954221]
[1688199724955,10.42682,1918.2,1917.8,11.606221]
[1688199725163,10.42682,1918.2,1917.8,6.391921]
[1688199725558,13.03343,1918.2,1917.8,1.177671]
[1688199725756,13.03343,1918.2,1917.7,6.57041]
[1688199725938,13.03343,1918.2,1917.7,1.356]
[1688199728751,13.03343,1918.2,1917.7,6.57056]
[1688199729066,13.03343,1918.2,1917.7,11.78513]
[1688199730669,13.03343,1918.2,1917.8,1.355]
[1688199730864,13.03343,1918.2,1917.8,12.961853]
[1688199732170,13.03343,1918.2,1917.8,7.747553]
[1688199732372,10.42682,1918.2,1917.8,12.961853]
[1688199735592,13.03343,1918.2,1917.8,12.961853]
[1688199735800,13.03343,1918.2,1917.8,7.747553]
[1688199736379,13.03343,1918.2,1917.8,12.961853]
[1688199738398,13.03343,1918.2,1917.8,7.747553]
[1688199740786,13.03343,1918.2,1917.8,6.392553]
[1688199741392,13.03343,1918.2,1917.7,6.56936]
[1688199741584,13.03343,1918.2,1917.7,10.4288]
[1688199741793,2.0926,1918.1,1917.7,10.4288]
[1688199741971,10.4276,1918.0,1917.7,10.4288]
[1688199742710,10.4276,1918.0,1917.7,5.21436]
[1688199743007,10.4276,1918.0,1917.6,11.78548]
[1688199743192,10.34117513,1918.0,1917.6,8.15652021]
[1688199744201,12.98627513,1918.0,1917.6,8.15652021]
[1688199745504,12.98627513,1918.0,1917.6,13.37137021]
[1688199746099,7.77246513,1918.0,1917.6,15.97879021]
[1688199750519,12.98625513,1918.0,1917.6,13.37137021]
[1688199750693,7.77246513,1918.0,1917.6,5.21474]
[1688199751196,12.98622513,1918.0,1917.5,6.258027]
[1688199751386,2.0623,1917.9,1917.5,6.258027]
[1688199752484,7.27637,1917.9,1917.5,6.258027]
[1688199753183,7.27637,1917.9,1917.5,11.473147]
[1688199753405,15.09745,1917.9,1917.5,5.21496]
[1688199753731,12.49044,1917.9,1917.5,5.21496]
[1688199754086,12.49044,1917.9,1917.5,10.43008]
[1688199754296,12.49044,1917.9,1917.5,5.21496]
[1688199756522,12.49044,1917.9,1917.5,10.43008]
[1688199759850,12.49044,1917.9,1917.5,12.083857]
[1688199760011,2.0623,1917.9,1917.5,12.083857]
[1688199761409,7.2764,1917.9,1917.5,12.083857]
[1688199764002,7.2764,1917.9,1917.5,13.438857]
[1688199764003,2.0623,1917.9,1917.5,13.438857]
[1688199765134,2.0623,1917.9,1917.5,16.046417]
[1688199765315,2.0623,1917.9,1917.6,1.6046417]
[1688199765510,13.0728,1918.0,1917.6,12.0340317]
[1688199765725,2.60665,1918.2,1917.6,14.6414517]
[1688199765726,5.21331,1918.2,1917.6,14.6414517]
[1688199765922,15.06607,1918.2,1917.7,1.356]
[1688199766236,15.06607,1918.2,1917.8,10.42834]
[1688199766441,9.85261,1918.2,1917.9,1.042834]
[1688199766621,9.85261,1918.2,1917.9,6.256744]
[1688199767235,0.130019,1918.1,1917.9,6.256744]
[1688199767825,5.343509,1918.1,1917.9,6.256744]
[1688199768026,5.343509,1918.1,1917.9,1.042834]
[1688199769442,5.343509,1918.1,1917.9,6.256854]
[1688199769829,0.130019,1918.1,1917.9,6.256854]
[1688199770544,0.130019,1918.1,1918.0,0.6256854]
[1688199770903,0.130019,1918.1,1918.0,5.8394454]
[1688199771137,0.130019,1918.1,1918.0,11.0532054]
[1688199774242,0.130019,1918.1,1918.0,5.8394454]
[1688199776018,0.130019,1918.1,1918.0,0.6256854]
[1688199781165,0.130019,1918.1,1918.0,5.8394454]
[1688199783351,0.130019,1918.1,1918.0,11.0532054]
[1688199783763,0.130019,1918.1,1918.0,13.74072724]
[1688199783987,0.130019,1918.1,1918.0,17.70260724]
[1688199785267,0.130019,1918.3,1918.0,17.70260724]
[1688199785562,0.130019,1918.3,1918.1,1.77026072]
[1688199785760,0.130019,1918.3,1918.2,5.21322]
[1688199789680,2.60584,1918.8,1918.2,5.21322]
[1688199789681,6.25174741,1918.9,1918.2,16.22057184]
[1688199789969,7.26597,1919.1,1918.8,10.4229]
[1688199790180,2.60488,1919.5,1919.2,10.4207]
[1688199790181,5.20977,1919.5,1919.2,10.4207]
[1688199790680,5.20977,1919.5,1919.0,10.42181]
[1688199790681,13.02422,1919.5,1919.0,10.42181]
[1688199792258,13.02422,1919.5,1919.0,13.02733]
[1688199793171,10.41938,1919.5,1919.0,13.04381946]
[1688199793769,5.20969,1919.5,1919.0,13.04381946]
[1688199793972,5.20969,1919.5,1919.1,1.30438195]
[1688199794278,10.41938,1919.5,1919.1,6.51496195]
[1688199794490,10.41938,1919.5,1919.1,5.21058]
[1688199795589,10.41938,1919.5,1919.1,10.42135]
[1688199798599,10.41938,1919.5,1919.1,5.21058]
[1688199800653,11.77538,1919.5,1919.1,5.21076]
[1688199800849,8.465112,1919.5,1919.1,5.21076]
[1688199801366,8.465112,1919.5,1919.1,10.42153]
[1688199801759,13.674802,1919.5,1919.1,10.42153]
[1688199802062,16.279642,1919.5,1919.1,5.21076]
[1688199802464,16.279642,1919.5,1918.7,33.43937944]
[1688199802465,1.348,1919.3,1918.7,33.03]
[1688199802670,17.61116384,1919.5,1918.7,36.34627808]
[1688199802671,14.3777,1919.2,1918.7,36.34627808]
[1688199803066,14.3777,1919.2,1918.7,6.31627808]
[1688199803257,14.3777,1919.2,1918.7,3.0]
[1688199803472,2.4861,1919.1,1918.6,5.63840931]
[1688199803676,10.42236,1919.0,1918.6,10.42394]
[1688199803876,10.42236,1919.0,1918.6,13.03]
[1688199804071,11.11831,1919.1,1918.6,13.03]
[1688199804275,11.11831,1919.1,1918.6,14.333]
[1688199804476,9.77031,1919.1,1918.6,14.333]
[1688199805176,4.5594,1919.1,1918.6,17.02052184]
[1688199805806,5.2106,1919.2,1918.7,2.68752184]
[1688199806011,5.2106,1919.2,1918.8,10.42293]
[1688199806206,5.2106,1919.2,1918.9,1.042293]
[1688199806390,10.42121,1919.2,1918.9,6.253563]
[1688199808078,10.42121,1919.2,1918.9,10.42258]
[1688199809087,10.42121,1919.2,1918.9,5.21127]
[1688199809284,13.02646,1919.2,1918.9,5.21127]
[1688199809503,13.02646,1919.2,1918.8,5.21143]
[1688199813709,5.21054,1919.2,1918.8,13.02881]
[1688199814017,10.42108,1919.2,1918.9,1.302881]
[1688199814193,10.42108,1919.2,1918.9,11.725271]
[1688199816691,4.5101,1919.3,1918.9,14.330921]
[1688199817018,14.93062,1919.3,1919.1,5.21077]
[1688199825302,9.72036,1919.3,1919.1,10.42154]
[1688199826141,7.71296,1919.3,1919.1,10.42154]
[1688199826504,2.60466,1919.7,1919.1,10.42154]
[1688199826505,5.62172157,1919.8,1919.2,2.68752184]
[1688199826748,2.5887,1919.6,1919.3,13.29379218]
[1688199827244,5.20846,1920.0,1919.4,0.01648602]
[1688199827405,5.20868,1919.9,1919.6,5.20931]
[1688199827734,5.20868,1919.9,1919.6,10.41872]
[1688199827940,10.41736,1919.9,1919.6,10.41872]
[1688199828164,16.133582,1919.9,1919.3,0.26875218]
[1688199828310,10.41856,1919.7,1919.1,3.0]
[1688199828511,13.02313,1919.7,1919.2,10.42067]
[1688199829245,14.91655,1919.6,1919.2,13.02592]
[1688199829445,9.70692,1919.6,1919.2,13.02592]
[1688199829799,4.4975,1919.6,1919.2,13.02592]
[1688199829922,4.4975,1919.6,1919.3,1.302592]
[1688199830118,4.4975,1919.6,1919.4,5.20996]
[1688199830319,4.4975,1919.6,1919.4,10.41992]
[1688199831742,4.4975,1919.6,1919.4,5.20996]
[1688199831932,9.70695,1919.6,1919.4,5.20996]
[1688199832765,4.4975,1919.6,1919.4,5.20996]
[1688199832933,9.70694,1919.6,1919.4,5.20996]
[1688199833959,4.4975,1919.6,1919.4,5.20996]
[1688199834363,9.70697,1919.6,1919.4,5.20996]
[1688199835646,2.4578,1919.6,1919.4,11.461925]
[1688199836021,2.4578,1919.6,1919.4,6.251965]
[1688199838362,7.66724,1919.6,1919.4,6.251965]
[1688199840468,12.87668,1919.6,1919.2,10.42067]
[1688199840762,7.36708,1919.5,1919.2,10.42067]
[1688199841771,2.1573,1919.5,1919.2,13.02592]
[1688199842455,10.41904,1919.6,1919.3,2.68752184]
[1688199842656,4.6236,1919.8,1919.4,13.29365218]
[1688199843057,9.83254,1919.8,1919.4,13.29365218]
[1688199843386,4.6236,1919.8,1919.4,13.29365218]
[1688199844092,9.83249,1919.8,1919.4,13.29365218]
[1688199844399,9.83249,1919.8,1919.5,1.32936522]
[1688199844691,9.83249,1919.8,1919.6,5.20941]
[1688199844879,9.83249,1919.8,1919.6,10.41882]
[1688199848565,9.83249,1919.8,1919.6,5.20941]
[1688199848768,15.04138,1919.8,1919.6,5.20941]
[1688199850668,15.04138,1919.8,1919.4,0.26875218]
[1688199850669,17.64581,1919.8,1919.4,10.68851218]
[1688199850863,17.64581,1919.8,1919.4,5.47857218]
[1688199851493,17.64581,1919.8,1919.4,10.68853218]
[1688199852488,15.04138,1919.8,1919.5,1.06885322]
[1688199852666,15.04138,1919.8,1919.5,6.27845322]
[1688199853591,17.64581,1919.8,1919.5,6.27845322]
[1688199853796,17.64581,1919.8,1919.5,5.2096]
[1688199854393,15.04138,1919.8,1919.5,5.2096]
[1688199856062,15.04138,1919.8,1919.5,10.41929]
[1688199857370,17.64581,1919.8,1919.5,5.2096]
[1688199859572,17.64581,1919.8,1919.4,10.68833218]
[1688199861603,4.6236,1919.8,1919.6,5.20941]
[1688199861807,2.5299,1919.8,1919.6,5.20941]
[1688199862669,5.2086,1919.9,1919.6,5.20941]
[1688199864598,10.4172,1919.9,1919.6,5.20941]
[1688199865103,13.0215,1919.9,1919.5,11.48795322]
[1688199865304,10.4184,1919.7,1919.3,10.42018]
[1688199865497,10.4184,1919.7,1919.3,7.89760184]
[1688199865698,10.4184,1919.7,1919.3,5.21008]
[1688199866096,13.0365,1919.7,1919.3,5.21008]
[1688199866301,13.0365,1919.7,1919.4,0.521008]
[1688199866814,15.64107,1919.7,1919.4,0.521008]
[1688199868891,15.64107,1919.7,1919.4,5.730948]
[1688199872121,13.0365,1919.7,1919.4,10.940908]
[1688199872339,7.8273,1919.7,1919.5,1.0940908]
[1688199872626,7.8273,1919.7,1919.5,11.5132408]
[1688199873835,1.9488,1919.8,1919.5,11.5132408]
[1688199875822,4.8192,1919.9,1919.5,15.4740808]
[1688199875997,4.8192,1919.9,1919.7,10.41828]
[1688199875998,7.89196,1919.9,1919.7,10.41828]
[1688199877328,15.23652,1919.9,1919.7,5.20914]
[1688199878955,10.02786,1919.9,1919.7,5.20914]
[1688199879163,10.02786,1919.9,1919.7,10.41828]
[1688199879363,10.02786,1919.9,1919.8,1.041828]
[1688199880833,10.02786,1919.9,1919.8,6.250698]
[1688199881171,7.89196,1919.9,1919.8,6.250698]
[1688199884554,7.89196,1919.9,1919.8,1.041828]
[1688199884857,7.89196,1919.9,1919.7,10.41809]
[1688199886054,7.89196,1919.9,1919.5,1.14018516]
[1688199886230,15.70486,1919.9,1919.5,10.43568516]
[1688199886961,2.0154,1919.8,1919.5,10.43568516]
[1688199887132,12.43335,1919.8,1919.5,10.30588916]
[1688199892380,7.22427,1919.8,1919.5,10.30588916]
[1688199892736,7.22427,1919.8,1919.5,12.91072916]
[1688199894568,7.22427,1919.8,1919.5,14.25390288]
[1688199895453,2.0154,1919.8,1919.5,14.25390288]
[1688199897361,2.0154,1919.8,1919.5,12.91072916]
[1688199920260,2.6833,1919.9,1919.5,12.91072916]
[1688199928411,2.0091,1919.8,1919.5,12.91072916]
[1688199933525,2.0091,1919.8,1919.5,12.90798236]
[1688199952470,2.0091,1919.8,1919.0,1.35818145]
[1688199952671,5.20979,1919.5,1919.1,5.21052]
[1688199952963,4.5505,1919.4,1919.1,5.21075]
[1688199953254,4.5505,1919.4,1919.1,6.52167118]
[1688199953423,4.5505,1919.4,1919.1,1.31092118]
[1688199953617,4.5505,1919.4,1919.1,10.4213]
[1688199953843,4.5505,1919.4,1919.1,13.02668]
[1688199957191,4.5505,1919.4,1919.1,5.21054]
[1688199957346,9.76048,1919.4,1919.1,5.21054]
[1688199958669,9.76048,1919.4,1919.1,10.42131]
[1688199958853,4.5505,1919.4,1919.1,10.42131]
[1688199959486,9.76048,1919.4,1919.1,10.42131]
[1688199963290,14.97046,1919.4,1919.0,0.41222897]
[1688199963687,14.97046,1919.4,1918.9,33.03]
[1688199963881,14.97046,1919.4,1918.9,10.71162798]
[1688199964194,14.97046,1919.4,1918.9,11.32441298]
[1688199964575,14.97046,1919.4,1918.9,8.32441298]
[1688199966763,14.97046,1919.4,1918.9,13.53572298]
[1688199968808,9.76048,1919.4,1918.9,13.53572298]
[1688199969785,14.97046,1919.4,1918.9,13.53572298]
[1688199969982,14.97046,1919.4,1918.9,10.84820114]
[1688199970199,9.76048,1919.4,1918.9,13.45385114]
[1688199970508,14.97042,1919.4,1918.9,15.19541325]
[1688199971208,17.5754,1919.4,1918.9,15.19541325]
[1688199971394,17.5754,1919.4,1918.9,13.45385114]
[1688199972795,17.5754,1919.4,1918.9,5.63689114]
[1688199972996,17.5754,1919.4,1918.9,0.42558114]
[1688199973210,17.5754,1919.4,1918.9,5.63689114]
[1688199973386,17.5754,1919.4,1918.9,10.42262]
[1688199974411,3.10054,1919.3,1918.7,5.21174]
[1688199974619,10.42144,1919.2,1918.7,7.89926184]
[1688199974775,17.8126,1919.1,1918.7,5.21181]
[1688199974975,17.8126,1919.1,1918.6,10.42399]
[1688199975709,19.1606,1919.1,1918.6,13.03005]
[1688199976427,16.55522,1919.1,1918.6,13.03005]
[1688199976582,18.210742,1919.1,1918.6,13.03005]
[1688199977919,20.816122,1919.1,1918.6,13.03005]
[1688199978217,20.83260715,1919.1,1918.6,13.03005]
[1688199978381,19.48460715,1919.1,1918.6,13.03005]
[1688199987413,17.82908515,1919.1,1918.6,13.03005]
[1688199988718,2.69488515,1919.1,1918.6,17.07357184]
[1688199989552,2.69488515,1919.1,1918.7,4.03452184]
[1688199989553,2.6784,1919.1,1918.7,4.03452184]
[1688199989706,10.42022,1919.4,1918.8,13.02882]
[1688199990025,2.6722,1919.3,1918.8,13.02882]
[1688199990225,2.6722,1919.3,1918.9,1.302882]
[1688199990398,2.6722,1919.3,1919.0,10.42198]
[1688199990993,2.6722,1919.3,1919.0,13.0275]
[1688199994830,10.8275412,1919.6,1919.0,13.0275]
[1688199995014,4.6329,1919.5,1919.0,13.0275]
[1688199995211,4.6329,1919.5,1919.0,14.5961382]
[1688199995713,9.84265,1919.5,1919.0,14.5961382]
[1688199999049,15.0524,1919.5,1919.0,14.5961382]
[1688199999417,9.84265,1919.5,1919.0,14.5961382]
[1688200000820,15.0524,1919.5,1919.0,14.5961382]
[1688200001006,4.6329,1919.5,1919.1,1.45961382]
[1688200001208,4.6329,1919.5,1919.2,10.4209]
[1688200001416,4.6329,1919.5,1919.2,13.02615]
[1688200005610,9.8426,1919.5,1919.2,13.02615]
[1688200007128,0.129734,1919.4,1919.2,13.02615]
[1688200007425,0.129734,1919.4,1919.2,14.47472638]
[1688200017220,0.129734,1919.4,1919.2,11.86947638]
[1688200017539,0.129734,1919.4,1919.2,5.21045]
[1688200017734,0.129734,1919.4,1919.2,10.42095]
[1688200019957,0.129734,1919.4,1919.2,5.21045]
[1688200021264,0.129734,1919.4,1919.2,10.42095]
[1688200022163,0.129734,1919.4,1919.2,5.21045]
[1688200022349,5.339704,1919.4,1919.1,1.45961382]
[1688200022548,5.339704,1919.4,1919.2,5.2105]